[Event "Titled Tuesday Blitz August 1 Early 2023"]
[White "Rustemov, Alexander"]
[Black "Rosen, Eric"]
[WhiteFideId "4119002"]
[BlackFideId "2032562"]
[WhiteElo "2841"]
[BlackElo "2699"]
[Result "1-0"]
[Round "10"]
[TimeControl "180+1"]
[Date "2023.08.01"]
[WhiteClock "0:00:16"]
[BlackClock "0:00:00"]
[Board "26"]

1. d4 {[%clk 0:03:00]}  d5 {[%clk 0:02:59]} 2. c4 {[%clk 0:03:01]}  e6 {[%clk 0:03:00]} 3. Nc3 {[%clk 0:03:01]}  Nf6 {[%clk 0:03:00]} 4. cxd5 {[%clk 0:03:01]}  exd5 {[%clk 0:03:01]} 5. Bg5 {[%clk 0:03:01]}  c6 {[%clk 0:03:01]} 6. e3 {[%clk 0:03:01]}  Bd6 {[%clk 0:03:02]} 7. Bd3 {[%clk 0:03:01]}  h6 {[%clk 0:03:03]} 8. Bh4 {[%clk 0:03:01]}  O-O {[%clk 0:03:03]} 9. Qc2 {[%clk 0:02:59]}  Re8 {[%clk 0:03:03]} 10. Nge2 {[%clk 0:02:53]}  a5 {[%clk 0:03:03]} 11. a3 {[%clk 0:02:48]}  Na6 {[%clk 0:03:03]} 12. Bg3 {[%clk 0:02:46]}  Bxg3 {[%clk 0:03:02]} 13. Nxg3 {[%clk 0:02:45]}  Nc7 {[%clk 0:03:01]} 14. O-O {[%clk 0:02:44]}  h5 {[%clk 0:03:01]} 15. Nge2 {[%clk 0:02:34]}  h4 {[%clk 0:02:55]} 16. h3 {[%clk 0:02:30]}  Ne6 {[%clk 0:02:55]} 17. Bf5 {[%clk 0:02:24]}  g6 {[%clk 0:02:50]} 18. Bxe6 {[%clk 0:02:22]}  Bxe6 {[%clk 0:02:51]} 19. Nf4 {[%clk 0:02:20]}  Bf5 {[%clk 0:02:51]} 20. Qd2 {[%clk 0:02:19]}  Kg7 {[%clk 0:02:50]} 21. Rae1 {[%clk 0:02:15]}  Qd6 {[%clk 0:02:46]} 22. Nd3 {[%clk 0:02:14]}  a4 {[%clk 0:02:16]} 23. Ne5 {[%clk 0:02:12]}  Nd7 {[%clk 0:02:10]} 24. f4 {[%clk 0:02:00]}  f6 {[%clk 0:02:06]} 25. Nf3 {[%clk 0:01:59]}  Rh8 {[%clk 0:01:50]} 26. Kh2 {[%clk 0:01:55]}  Nb6 {[%clk 0:01:45]} 27. Qf2 {[%clk 0:01:55]}  Nc4 {[%clk 0:01:37]} 28. Nxh4 {[%clk 0:01:55]}  Bd3 {[%clk 0:01:37]} 29. Rg1 {[%clk 0:01:50]}  g5 {[%clk 0:01:29]} 30. Nf3 {[%clk 0:01:44]}  gxf4 {[%clk 0:01:30]} 31. exf4 {[%clk 0:01:37]}  Qxf4+ {[%clk 0:01:31]} 32. Qg3+ {[%clk 0:01:35]}  Qxg3+ {[%clk 0:01:27]} 33. Kxg3 {[%clk 0:01:36]}  Kf7 {[%clk 0:01:15]} 34. Nd1 {[%clk 0:01:30]}  Rae8 {[%clk 0:01:11]} 35. Kf2 {[%clk 0:01:26]}  Nd6 {[%clk 0:01:10]} 36. Nc3 {[%clk 0:01:24]}  b5 {[%clk 0:01:06]} 37. Rxe8 {[%clk 0:01:20]}  Rxe8 {[%clk 0:01:06]} 38. Re1 {[%clk 0:01:21]}  Be4 {[%clk 0:00:53]} 39. Nd2 {[%clk 0:01:18]}  f5 {[%clk 0:00:53]} 40. g3 {[%clk 0:01:15]}  Rh8 {[%clk 0:00:49]} 41. h4 {[%clk 0:01:15]}  Kf6 {[%clk 0:00:49]} 42. Na2 {[%clk 0:01:13]}  Rc8 {[%clk 0:00:44]} 43. Nb4 {[%clk 0:01:13]}  c5 {[%clk 0:00:44]} 44. dxc5 {[%clk 0:01:11]}  Rxc5 {[%clk 0:00:45]} 45. Nf3 {[%clk 0:01:02]}  Nc4 {[%clk 0:00:38]} 46. Re2 {[%clk 0:01:00]}  Rc8 {[%clk 0:00:21]} 47. Nd4 {[%clk 0:00:58]}  Ne5 {[%clk 0:00:20]} 48. Re1 {[%clk 0:00:49]}  Rc4 {[%clk 0:00:14]} 49. Rd1 {[%clk 0:00:45]}  Ng4+ {[%clk 0:00:06]} 50. Ke2 {[%clk 0:00:44]}  Rc5 {[%clk 0:00:05]} 51. Na6 {[%clk 0:00:39]}  Rc8 {[%clk 0:00:04]} 52. Nxb5 {[%clk 0:00:32]}  Ne5 {[%clk 0:00:02]} 53. Nd4 {[%clk 0:00:30]}  Ra8 {[%clk 0:00:01]} 54. Nb4 {[%clk 0:00:27]}  Rg8 {[%clk 0:00:01]} 55. Rg1 {[%clk 0:00:25]}  Nc4 {[%clk 0:00:02]} 56. Nd3 {[%clk 0:00:21]}  Bxd3+ {[%clk 0:00:02]} 57. Kxd3 {[%clk 0:00:21]}  Nxb2+ {[%clk 0:00:03]} 58. Kc3 {[%clk 0:00:22]}  Nc4 {[%clk 0:00:04]} 59. Kb4 {[%clk 0:00:22]}  Rb8+ {[%clk 0:00:04]} 60. Kxa4 {[%clk 0:00:20]}  Ke5 {[%clk 0:00:04]} 61. Nc6+ {[%clk 0:00:20]}  Kd6 {[%clk 0:00:03]} 62. Nxb8 {[%clk 0:00:20]}  Kc5 {[%clk 0:00:03]} 63. Nd7+ {[%clk 0:00:19]}  Kd6 {[%clk 0:00:01]} 64. Nf6 {[%clk 0:00:18]}  d4 {[%clk 0:00:01]} 65. Kb4 {[%clk 0:00:17]}  Ne3 {[%clk 0:00:00]} 66. Nh5 {[%clk 0:00:16]} 1-0


[Site "https://www.chess.com"]

[Event "Titled Tuesday Blitz August 1 Early 2023"]
[White "Pham, Le Thao Nguyen"]
[Black "Mikhailovsky, Vladimir"]
[WhiteFideId "12401226"]
[BlackFideId "34105414"]
[WhiteElo "2623"]
[BlackElo "2754"]
[Result "1/2-1/2"]
[Round "10"]
[TimeControl "180+1"]
[Date "2023.08.01"]
[WhiteClock "0:00:35"]
[BlackClock "0:00:14"]
[Board "35"]

1. d4 {[%clk 0:03:00]}  d6 {[%clk 0:02:56]} 2. Nf3 {[%clk 0:02:58]}  Nf6 {[%clk 0:02:57]} 3. g3 {[%clk 0:02:55]}  g6 {[%clk 0:02:57]} 4. Bg2 {[%clk 0:02:55]}  Bg7 {[%clk 0:02:58]} 5. O-O {[%clk 0:02:56]}  O-O {[%clk 0:02:59]} 6. b3 {[%clk 0:02:56]}  Bf5 {[%clk 0:02:58]} 7. Bb2 {[%clk 0:02:56]}  a5 {[%clk 0:02:56]} 8. a4 {[%clk 0:02:43]}  c6 {[%clk 0:02:56]} 9. Re1 {[%clk 0:02:40]}  d5 {[%clk 0:02:50]} 10. Nbd2 {[%clk 0:02:36]}  Ne4 {[%clk 0:02:41]} 11. Nh4 {[%clk 0:02:26]}  Nxd2 {[%clk 0:02:38]} 12. Qxd2 {[%clk 0:02:19]}  e6 {[%clk 0:02:29]} 13. Nf3 {[%clk 0:01:58]}  Be4 {[%clk 0:02:22]} 14. Ne5 {[%clk 0:01:46]}  Bxg2 {[%clk 0:02:22]} 15. Kxg2 {[%clk 0:01:47]}  Nd7 {[%clk 0:02:22]} 16. Nxd7 {[%clk 0:01:45]}  Qxd7 {[%clk 0:02:23]} 17. f4 {[%clk 0:01:40]}  c5 {[%clk 0:02:10]} 18. Ba3 {[%clk 0:01:32]}  Bxd4 {[%clk 0:02:01]} 19. c3 {[%clk 0:01:31]}  Bf6 {[%clk 0:02:00]} 20. Bxc5 {[%clk 0:01:30]}  Rfc8 {[%clk 0:02:01]} 21. Bd4 {[%clk 0:01:31]}  Bxd4 {[%clk 0:01:55]} 22. cxd4 {[%clk 0:01:32]}  Qc7 {[%clk 0:01:43]} 23. Rec1 {[%clk 0:01:22]}  Qb6 {[%clk 0:01:43]} 24. Qd3 {[%clk 0:01:23]}  Rc6 {[%clk 0:01:40]} 25. Qb5 {[%clk 0:01:07]}  Ra6 {[%clk 0:01:08]} 26. e3 {[%clk 0:01:01]}  Qc7 {[%clk 0:00:43]} 27. Rc5 {[%clk 0:00:53]}  Rxc5 {[%clk 0:00:41]} 28. dxc5 {[%clk 0:00:54]}  Rc6 {[%clk 0:00:41]} 29. Rc1 {[%clk 0:00:54]}  h5 {[%clk 0:00:38]} 30. h4 {[%clk 0:00:53]}  Qd7 {[%clk 0:00:32]} 31. Rc3 {[%clk 0:00:39]}  d4 {[%clk 0:00:27]} 32. exd4 {[%clk 0:00:40]}  Qxd4 {[%clk 0:00:28]} 33. Qc4 {[%clk 0:00:40]}  Qxc4 {[%clk 0:00:15]} 34. Rxc4 {[%clk 0:00:41]}  b6 {[%clk 0:00:16]} 35. cxb6 {[%clk 0:00:39]}  Rxb6 {[%clk 0:00:17]} 36. Rc5 {[%clk 0:00:37]}  Rxb3 {[%clk 0:00:17]} 37. Rxa5 {[%clk 0:00:38]}  Kg7 {[%clk 0:00:14]} 38. Ra7 {[%clk 0:00:35]} 1/2-1/2


[Site "https://www.chess.com"]

[Event "Titled Tuesday Blitz August 1 Early 2023"]
[White "Hoang, Thi Bao Tram"]
[Black "Matinian, Nikita"]
[WhiteFideId "12401102"]
[BlackFideId "24129100"]
[WhiteElo "2620"]
[BlackElo "2753"]
[Result "1-0"]
[Round "10"]
[TimeControl "180+1"]
[Date "2023.08.01"]
[WhiteClock "0:00:14"]
[BlackClock "0:00:00"]
[Board "36"]

1. Nf3 {[%clk 0:03:00]}  Nf6 {[%clk 0:03:00]} 2. g3 {[%clk 0:03:00]}  g6 {[%clk 0:03:00]} 3. Bg2 {[%clk 0:03:00]}  Bg7 {[%clk 0:03:01]} 4. O-O {[%clk 0:03:00]}  O-O {[%clk 0:03:02]} 5. d4 {[%clk 0:02:52]}  d6 {[%clk 0:03:03]} 6. a4 {[%clk 0:02:48]}  c6 {[%clk 0:03:01]} 7. Na3 {[%clk 0:02:43]}  Ne4 {[%clk 0:02:53]} 8. c3 {[%clk 0:02:41]}  Nd7 {[%clk 0:02:53]} 9. Nc4 {[%clk 0:02:37]}  f5 {[%clk 0:02:48]} 10. a5 {[%clk 0:02:33]}  h6 {[%clk 0:02:46]} 11. Ncd2 {[%clk 0:02:12]}  d5 {[%clk 0:02:44]} 12. Nb3 {[%clk 0:02:07]}  g5 {[%clk 0:02:43]} 13. Ne1 {[%clk 0:02:06]}  Ndf6 {[%clk 0:02:41]} 14. f3 {[%clk 0:02:04]}  Nd6 {[%clk 0:02:41]} 15. Nd3 {[%clk 0:02:04]}  Bd7 {[%clk 0:02:31]} 16. Ne5 {[%clk 0:02:00]}  Be8 {[%clk 0:02:32]} 17. Nc5 {[%clk 0:01:58]}  Qc8 {[%clk 0:02:30]} 18. Qb3 {[%clk 0:01:54]}  Kh8 {[%clk 0:02:26]} 19. Bd2 {[%clk 0:01:42]}  Rb8 {[%clk 0:02:25]} 20. Qc2 {[%clk 0:01:28]}  b6 {[%clk 0:02:25]} 21. axb6 {[%clk 0:01:27]}  axb6 {[%clk 0:02:26]} 22. Ncd3 {[%clk 0:01:07]}  c5 {[%clk 0:02:24]} 23. Rfc1 {[%clk 0:01:06]}  c4 {[%clk 0:02:15]} 24. Nf2 {[%clk 0:01:05]}  e6 {[%clk 0:02:04]} 25. Rf1 {[%clk 0:01:00]}  Nd7 {[%clk 0:02:04]} 26. Nxd7 {[%clk 0:00:56]}  Qxd7 {[%clk 0:02:03]} 27. e4 {[%clk 0:00:56]}  fxe4 {[%clk 0:02:03]} 28. fxe4 {[%clk 0:00:56]}  Bg6 {[%clk 0:02:03]} 29. Rae1 {[%clk 0:00:53]}  b5 {[%clk 0:01:52]} 30. Qd1 {[%clk 0:00:52]}  b4 {[%clk 0:01:45]} 31. exd5 {[%clk 0:00:46]}  exd5 {[%clk 0:01:45]} 32. Bxd5 {[%clk 0:00:46]}  b3 {[%clk 0:01:42]} 33. Bg2 {[%clk 0:00:44]}  Qa7 {[%clk 0:01:31]} 34. Re6 {[%clk 0:00:40]}  Bc2 {[%clk 0:01:28]} 35. Qh5 {[%clk 0:00:37]}  Nf7 {[%clk 0:01:21]} 36. Ng4 {[%clk 0:00:30]}  Qd7 {[%clk 0:00:42]} 37. Ree1 {[%clk 0:00:27]}  Rbe8 {[%clk 0:00:30]} 38. Rxe8 {[%clk 0:00:19]}  Qxe8 {[%clk 0:00:28]} 39. Re1 {[%clk 0:00:19]}  Qd7 {[%clk 0:00:20]} 40. Nf2 {[%clk 0:00:19]}  Nd6 {[%clk 0:00:16]} 41. Bxg5 {[%clk 0:00:17]}  Qf5 {[%clk 0:00:16]} 42. Nh3 {[%clk 0:00:15]}  Kg8 {[%clk 0:00:11]} 43. Rf1 {[%clk 0:00:15]}  Qg6 {[%clk 0:00:07]} 44. Qxg6 {[%clk 0:00:15]}  Bxg6 {[%clk 0:00:08]} 45. Rxf8+ {[%clk 0:00:13]}  Kxf8 {[%clk 0:00:08]} 46. Bf4 {[%clk 0:00:14]}  Nb5 {[%clk 0:00:08]} 47. Bd5 {[%clk 0:00:14]}  Nxc3 {[%clk 0:00:08]} 48. Bxc4 {[%clk 0:00:14]}  Bxd4+ {[%clk 0:00:07]} 49. Kf1 {[%clk 0:00:13]}  Na4 {[%clk 0:00:05]} 50. Bxh6+ {[%clk 0:00:13]}  Ke7 {[%clk 0:00:05]} 51. Bxb3 {[%clk 0:00:14]}  Bd3+ {[%clk 0:00:05]} 52. Ke1 {[%clk 0:00:13]}  Nxb2 {[%clk 0:00:06]} 53. Nf4 {[%clk 0:00:13]}  Bc3+ {[%clk 0:00:06]} 54. Kf2 {[%clk 0:00:13]}  Bf5 {[%clk 0:00:06]} 55. Kf3 {[%clk 0:00:13]}  Bc8 {[%clk 0:00:03]} 56. Nd5+ {[%clk 0:00:13]}  Kd6 {[%clk 0:00:04]} 57. Nxc3 {[%clk 0:00:14]}  Nd3 {[%clk 0:00:04]} 58. Be3 {[%clk 0:00:14]}  Ke5 {[%clk 0:00:04]} 59. Bf4+ {[%clk 0:00:13]}  Kd4 {[%clk 0:00:04]} 60. Ne2+ {[%clk 0:00:14]}  Kc5 {[%clk 0:00:04]} 61. Be3+ {[%clk 0:00:14]}  Kb4 {[%clk 0:00:04]} 62. Bc2 {[%clk 0:00:14]}  Ne1+ {[%clk 0:00:05]} 63. Kf4 {[%clk 0:00:13]}  Nxc2 {[%clk 0:00:05]} 64. h4 {[%clk 0:00:13]}  Kc4 {[%clk 0:00:06]} 65. h5 {[%clk 0:00:13]}  Kd3 {[%clk 0:00:06]} 66. Bc5 {[%clk 0:00:13]}  Kxe2 {[%clk 0:00:05]} 67. h6 {[%clk 0:00:13]}  Ne1 {[%clk 0:00:03]} 68. h7 {[%clk 0:00:13]}  Nd3+ {[%clk 0:00:04]} 69. Kg5 {[%clk 0:00:13]}  Nxc5 {[%clk 0:00:04]} 70. h8=Q {[%clk 0:00:13]}  Bb7 {[%clk 0:00:02]} 71. Qe5+ {[%clk 0:00:13]}  Ne4+ {[%clk 0:00:03]} 72. Kf4 {[%clk 0:00:13]}  Kd3 {[%clk 0:00:04]} 73. g4 {[%clk 0:00:13]}  Bc6 {[%clk 0:00:00]} 74. g5 {[%clk 0:00:14]} 1-0


[Site "https://www.chess.com"]

[Event "Titled Tuesday Blitz August 1 Early 2023"]
[White "Saya, Ethan"]
[Black "Zhao, Jun"]
[WhiteFideId "26095181"]
[BlackFideId "8602522"]
[WhiteElo "2600"]
[BlackElo "2730"]
[Result "0-1"]
[Round "10"]
[TimeControl "180+1"]
[Date "2023.08.01"]
[WhiteClock "0:00:00"]
[BlackClock "0:00:09"]
[Board "37"]

1. d4 {[%clk 0:03:00]}  Nf6 {[%clk 0:02:54]} 2. c4 {[%clk 0:03:00]}  e6 {[%clk 0:02:53]} 3. Nc3 {[%clk 0:03:00]}  d5 {[%clk 0:02:52]} 4. cxd5 {[%clk 0:02:59]}  exd5 {[%clk 0:02:53]} 5. Bg5 {[%clk 0:02:59]}  c6 {[%clk 0:02:52]} 6. e3 {[%clk 0:03:00]}  h6 {[%clk 0:02:52]} 7. Bh4 {[%clk 0:02:59]}  Be7 {[%clk 0:02:52]} 8. Bd3 {[%clk 0:02:57]}  O-O {[%clk 0:02:52]} 9. Nge2 {[%clk 0:02:56]}  Nbd7 {[%clk 0:02:50]} 10. Qc2 {[%clk 0:02:52]}  Re8 {[%clk 0:02:48]} 11. O-O {[%clk 0:02:47]}  Nh5 {[%clk 0:02:48]} 12. Bxe7 {[%clk 0:02:45]}  Qxe7 {[%clk 0:02:48]} 13. Rae1 {[%clk 0:02:29]}  Nf8 {[%clk 0:02:42]} 14. Nc1 {[%clk 0:02:27]}  Nf6 {[%clk 0:02:38]} 15. f3 {[%clk 0:02:24]}  Ne6 {[%clk 0:02:37]} 16. Qf2 {[%clk 0:02:14]}  c5 {[%clk 0:02:37]} 17. Bb5 {[%clk 0:02:05]}  Bd7 {[%clk 0:02:36]} 18. Bxd7 {[%clk 0:02:04]}  Qxd7 {[%clk 0:02:37]} 19. dxc5 {[%clk 0:01:59]}  Nxc5 {[%clk 0:02:20]} 20. Qd2 {[%clk 0:01:59]}  Rad8 {[%clk 0:02:08]} 21. N1e2 {[%clk 0:01:45]}  Ne6 {[%clk 0:02:03]} 22. Nd4 {[%clk 0:01:43]}  a6 {[%clk 0:02:03]} 23. Rd1 {[%clk 0:01:29]}  Qc7 {[%clk 0:02:03]} 24. Nce2 {[%clk 0:01:19]}  Qe5 {[%clk 0:02:00]} 25. Nxe6 {[%clk 0:01:09]}  Rxe6 {[%clk 0:01:58]} 26. Nc3 {[%clk 0:00:39]}  Qxe3+ {[%clk 0:01:49]} 27. Qxe3 {[%clk 0:00:39]}  Rxe3 {[%clk 0:01:49]} 28. Rd4 {[%clk 0:00:40]}  b5 {[%clk 0:01:27]} 29. Rfd1 {[%clk 0:00:40]}  Rc8 {[%clk 0:01:20]} 30. Nxd5 {[%clk 0:00:36]}  Nxd5 {[%clk 0:01:17]} 31. Rxd5 {[%clk 0:00:37]}  Rc2 {[%clk 0:01:13]} 32. R1d2 {[%clk 0:00:35]}  Re2 {[%clk 0:01:12]} 33. Rxe2 {[%clk 0:00:26]}  Rxe2 {[%clk 0:01:12]} 34. Rd6 {[%clk 0:00:16]}  a5 {[%clk 0:01:12]} 35. b4 {[%clk 0:00:17]}  axb4 {[%clk 0:01:03]} 36. Rb6 {[%clk 0:00:16]}  Rxa2 {[%clk 0:01:00]} 37. Rxb5 {[%clk 0:00:16]}  Rb2 {[%clk 0:01:01]} 38. h3 {[%clk 0:00:15]}  b3 {[%clk 0:00:58]} 39. Rb7 {[%clk 0:00:15]}  g5 {[%clk 0:00:58]} 40. Kh2 {[%clk 0:00:15]}  Kg7 {[%clk 0:00:57]} 41. Kg3 {[%clk 0:00:14]}  h5 {[%clk 0:00:54]} 42. h4 {[%clk 0:00:12]}  gxh4+ {[%clk 0:00:39]} 43. Kxh4 {[%clk 0:00:13]}  Kg6 {[%clk 0:00:40]} 44. Rb5 {[%clk 0:00:06]}  Rb1 {[%clk 0:00:33]} 45. Rb6+ {[%clk 0:00:03]}  Kf5 {[%clk 0:00:30]} 46. Kg3 {[%clk 0:00:03]}  Ke5 {[%clk 0:00:19]} 47. Rb5+ {[%clk 0:00:03]}  Kd4 {[%clk 0:00:19]} 48. Rxh5 {[%clk 0:00:04]}  Kc4 {[%clk 0:00:18]} 49. Rh8 {[%clk 0:00:04]}  Rd1 {[%clk 0:00:13]} 50. Rc8+ {[%clk 0:00:03]}  Kd3 {[%clk 0:00:13]} 51. Rb8 {[%clk 0:00:03]}  Kc2 {[%clk 0:00:13]} 52. Rc8+ {[%clk 0:00:04]}  Kb1 {[%clk 0:00:12]} 53. Rc7 {[%clk 0:00:04]}  b2 {[%clk 0:00:05]} 54. Rxf7 {[%clk 0:00:04]}  Kc2 {[%clk 0:00:05]} 55. Rc7+ {[%clk 0:00:03]}  Kd3 {[%clk 0:00:02]} 56. Rb7 {[%clk 0:00:02]}  b1=Q {[%clk 0:00:02]} 57. Rxb1 {[%clk 0:00:03]}  Rxb1 {[%clk 0:00:03]} 58. Kf4 {[%clk 0:00:04]}  Kd4 {[%clk 0:00:02]} 59. g4 {[%clk 0:00:04]}  Kd5 {[%clk 0:00:01]} 60. Kf5 {[%clk 0:00:04]}  Kd6 {[%clk 0:00:02]} 61. Kf6 {[%clk 0:00:02]}  Kd7 {[%clk 0:00:02]} 62. g5 {[%clk 0:00:02]}  Ke8 {[%clk 0:00:02]} 63. Kg7 {[%clk 0:00:02]}  Rb7+ {[%clk 0:00:02]} 64. Kg6 {[%clk 0:00:01]}  Kf8 {[%clk 0:00:02]} 65. f4 {[%clk 0:00:02]}  Rb6+ {[%clk 0:00:02]} 66. Kf5 {[%clk 0:00:02]}  Kg7 {[%clk 0:00:03]} 67. Kg4 {[%clk 0:00:02]}  Rb5 {[%clk 0:00:03]} 68. f5 {[%clk 0:00:03]}  Rb4+ {[%clk 0:00:04]} 69. Kf3 {[%clk 0:00:03]}  Rb3+ {[%clk 0:00:04]} 70. Kf4 {[%clk 0:00:03]}  Rb4+ {[%clk 0:00:05]} 71. Kf3 {[%clk 0:00:04]}  Kf7 {[%clk 0:00:06]} 72. Kg3 {[%clk 0:00:04]}  Ke7 {[%clk 0:00:06]} 73. Kf3 {[%clk 0:00:04]}  Kd6 {[%clk 0:00:06]} 74. g6 {[%clk 0:00:02]}  Ke7 {[%clk 0:00:07]} 75. g7 {[%clk 0:00:02]}  Kf7 {[%clk 0:00:07]} 76. g8=Q+ {[%clk 0:00:03]}  Kxg8 {[%clk 0:00:07]} 77. Kg3 {[%clk 0:00:03]}  Kf7 {[%clk 0:00:08]} 78. Kf3 {[%clk 0:00:04]}  Kf6 {[%clk 0:00:08]} 79. Kg3 {[%clk 0:00:05]}  Kxf5 {[%clk 0:00:09]} 80. Kg2 {[%clk 0:00:06]}  Kf4 {[%clk 0:00:09]} 81. Kh1 {[%clk 0:00:00]}  Kg3 {[%clk 0:00:09]} 0-1


[Site "https://www.chess.com"]

[Event "Titled Tuesday Blitz August 1 Early 2023"]
[White "Brodowski, Piotr"]
[Black "Ahmad, Khagan"]
[WhiteFideId "1124480"]
[BlackFideId "13431552"]
[WhiteElo "2721"]
[BlackElo "2586"]
[Result "1-0"]
[Round "10"]
[TimeControl "180+1"]
[Date "2023.08.01"]
[WhiteClock "0:00:44"]
[BlackClock "0:00:07"]
[Board "38"]

1. Nf3 {[%clk 0:03:00]}  d5 {[%clk 0:02:59]} 2. c4 {[%clk 0:03:00]}  c6 {[%clk 0:02:59]} 3. Qc2 {[%clk 0:03:00]}  Nf6 {[%clk 0:02:59]} 4. e3 {[%clk 0:03:00]}  Bg4 {[%clk 0:02:54]} 5. b3 {[%clk 0:02:57]}  Nbd7 {[%clk 0:02:52]} 6. Bb2 {[%clk 0:02:57]}  e6 {[%clk 0:02:53]} 7. Be2 {[%clk 0:02:52]}  Bd6 {[%clk 0:02:49]} 8. h3 {[%clk 0:02:52]}  Bxf3 {[%clk 0:02:49]} 9. gxf3 {[%clk 0:02:50]}  Qe7 {[%clk 0:02:47]} 10. Rg1 {[%clk 0:02:49]}  Rg8 {[%clk 0:02:43]} 11. a3 {[%clk 0:02:48]}  a5 {[%clk 0:02:39]} 12. Nc3 {[%clk 0:02:48]}  g5 {[%clk 0:02:25]} 13. d4 {[%clk 0:02:44]}  h5 {[%clk 0:02:19]} 14. e4 {[%clk 0:02:38]}  dxe4 {[%clk 0:02:14]} 15. fxe4 {[%clk 0:02:37]}  e5 {[%clk 0:02:14]} 16. d5 {[%clk 0:02:37]}  Nc5 {[%clk 0:01:58]} 17. O-O-O {[%clk 0:02:28]}  Nfd7 {[%clk 0:01:48]} 18. Bxh5 {[%clk 0:02:21]}  a4 {[%clk 0:01:44]} 19. b4 {[%clk 0:02:19]}  Nb3+ {[%clk 0:01:44]} 20. Kb1 {[%clk 0:02:19]}  Bxb4 {[%clk 0:01:13]} 21. axb4 {[%clk 0:01:39]}  Qxb4 {[%clk 0:01:14]} 22. Ka2 {[%clk 0:01:37]}  Nd4 {[%clk 0:00:48]} 23. Rxd4 {[%clk 0:01:31]}  exd4 {[%clk 0:00:48]} 24. Nb1 {[%clk 0:01:32]}  d3 {[%clk 0:00:39]} 25. Qxd3 {[%clk 0:01:20]}  Nc5 {[%clk 0:00:39]} 26. Qc3 {[%clk 0:01:02]}  Qb3+ {[%clk 0:00:36]} 27. Ka1 {[%clk 0:01:00]}  a3 {[%clk 0:00:23]} 28. Qe5+ {[%clk 0:00:53]}  Kf8 {[%clk 0:00:10]} 29. Qd6+ {[%clk 0:00:52]}  Ke8 {[%clk 0:00:07]} 30. Bf6 {[%clk 0:00:44]} 1-0


[Site "https://www.chess.com"]

[Event "Titled Tuesday Blitz August 1 Early 2023"]
[White "Perez, Maximiliano"]
[Black "Dimitrov, Atanas"]
[WhiteFideId "117234"]
[BlackFideId "2901315"]
[WhiteElo "2564"]
[BlackElo "2718"]
[Result "1-0"]
[Round "10"]
[TimeControl "180+1"]
[Date "2023.08.01"]
[WhiteClock "0:00:29"]
[BlackClock "0:00:08"]
[Board "39"]

1. e4 {[%clk 0:03:00]}  c5 {[%clk 0:02:59]} 2. Nf3 {[%clk 0:02:58]}  d6 {[%clk 0:02:59]} 3. g3 {[%clk 0:02:57]}  Nf6 {[%clk 0:02:59]} 4. d3 {[%clk 0:02:56]}  g6 {[%clk 0:02:59]} 5. Bg2 {[%clk 0:02:57]}  Bg7 {[%clk 0:02:59]} 6. O-O {[%clk 0:02:57]}  Nc6 {[%clk 0:03:00]} 7. c3 {[%clk 0:02:57]}  O-O {[%clk 0:03:00]} 8. Re1 {[%clk 0:02:57]}  Bg4 {[%clk 0:02:56]} 9. h3 {[%clk 0:02:57]}  Bxf3 {[%clk 0:02:56]} 10. Qxf3 {[%clk 0:02:58]}  Rc8 {[%clk 0:02:55]} 11. Qd1 {[%clk 0:02:58]}  b5 {[%clk 0:02:51]} 12. d4 {[%clk 0:02:58]}  cxd4 {[%clk 0:02:50]} 13. cxd4 {[%clk 0:02:59]}  Nd7 {[%clk 0:02:43]} 14. Be3 {[%clk 0:02:57]}  Nb6 {[%clk 0:02:38]} 15. Na3 {[%clk 0:02:28]}  b4 {[%clk 0:02:30]} 16. Nc2 {[%clk 0:02:28]}  Nc4 {[%clk 0:02:17]} 17. Bc1 {[%clk 0:02:27]}  a5 {[%clk 0:02:13]} 18. b3 {[%clk 0:02:25]}  Nb6 {[%clk 0:02:11]} 19. Rb1 {[%clk 0:02:19]}  Na7 {[%clk 0:02:11]} 20. Bf1 {[%clk 0:02:13]}  Qd7 {[%clk 0:02:10]} 21. a4 {[%clk 0:02:03]}  bxa3 {[%clk 0:01:56]} 22. Nxa3 {[%clk 0:02:02]}  Nc6 {[%clk 0:01:49]} 23. Be3 {[%clk 0:01:25]}  d5 {[%clk 0:01:40]} 24. e5 {[%clk 0:01:23]}  Nb4 {[%clk 0:01:40]} 25. Rc1 {[%clk 0:01:16]}  Rxc1 {[%clk 0:01:38]} 26. Qxc1 {[%clk 0:01:17]}  Rc8 {[%clk 0:01:38]} 27. Qb2 {[%clk 0:01:16]}  Rc7 {[%clk 0:01:19]} 28. Rc1 {[%clk 0:01:16]}  Rxc1 {[%clk 0:01:19]} 29. Qxc1 {[%clk 0:01:16]}  f6 {[%clk 0:01:04]} 30. Qc5 {[%clk 0:01:16]}  Qb7 {[%clk 0:00:58]} 31. Qxa5 {[%clk 0:01:09]}  Nc6 {[%clk 0:00:57]} 32. Qc5 {[%clk 0:01:02]}  fxe5 {[%clk 0:00:54]} 33. dxe5 {[%clk 0:01:03]}  d4 {[%clk 0:00:27]} 34. Bxd4 {[%clk 0:01:03]}  Nxd4 {[%clk 0:00:26]} 35. Qxd4 {[%clk 0:01:02]}  Qc7 {[%clk 0:00:26]} 36. Nc4 {[%clk 0:00:58]}  Nxc4 {[%clk 0:00:20]} 37. Bxc4+ {[%clk 0:00:59]}  Kf8 {[%clk 0:00:19]} 38. Qd5 {[%clk 0:00:59]}  e6 {[%clk 0:00:14]} 39. Qxe6 {[%clk 0:00:45]}  Bxe5 {[%clk 0:00:15]} 40. Qg8+ {[%clk 0:00:44]}  Ke7 {[%clk 0:00:15]} 41. Qxh7+ {[%clk 0:00:45]}  Kf6 {[%clk 0:00:14]} 42. Qxc7 {[%clk 0:00:35]}  Bxc7 {[%clk 0:00:15]} 43. h4 {[%clk 0:00:36]}  g5 {[%clk 0:00:15]} 44. hxg5+ {[%clk 0:00:36]}  Kxg5 {[%clk 0:00:15]} 45. Kg2 {[%clk 0:00:36]}  Bb6 {[%clk 0:00:14]} 46. f4+ {[%clk 0:00:36]}  Kf5 {[%clk 0:00:14]} 47. Kf3 {[%clk 0:00:36]}  Kf6 {[%clk 0:00:14]} 48. g4 {[%clk 0:00:37]}  Bc7 {[%clk 0:00:14]} 49. g5+ {[%clk 0:00:37]}  Kg7 {[%clk 0:00:13]} 50. f5 {[%clk 0:00:36]}  Ba5 {[%clk 0:00:05]} 51. f6+ {[%clk 0:00:30]}  Kg6 {[%clk 0:00:05]} 52. Kg4 {[%clk 0:00:30]}  Bd2 {[%clk 0:00:05]} 53. Bd3+ {[%clk 0:00:29]}  Kf7 {[%clk 0:00:05]} 54. Kf5 {[%clk 0:00:29]}  Kf8 {[%clk 0:00:06]} 55. g6 {[%clk 0:00:29]}  Bh6 {[%clk 0:00:04]} 56. g7+ {[%clk 0:00:27]}  Bxg7 {[%clk 0:00:05]} 57. fxg7+ {[%clk 0:00:28]}  Kxg7 {[%clk 0:00:06]} 58. Ke6 {[%clk 0:00:28]}  Kf8 {[%clk 0:00:06]} 59. Kd7 {[%clk 0:00:27]}  Kf7 {[%clk 0:00:06]} 60. b4 {[%clk 0:00:27]}  Kf6 {[%clk 0:00:07]} 61. b5 {[%clk 0:00:28]}  Ke5 {[%clk 0:00:08]} 62. b6 {[%clk 0:00:29]}  Kd4 {[%clk 0:00:09]} 63. b7 {[%clk 0:00:30]}  Kxd3 {[%clk 0:00:02]} 64. b8=Q {[%clk 0:00:31]}  Kd2 {[%clk 0:00:03]} 65. Qg3 {[%clk 0:00:27]}  Ke2 {[%clk 0:00:03]} 66. Kd6 {[%clk 0:00:27]}  Kf1 {[%clk 0:00:04]} 67. Qh2 {[%clk 0:00:27]}  Ke1 {[%clk 0:00:04]} 68. Ke5 {[%clk 0:00:28]}  Kd1 {[%clk 0:00:05]} 69. Ke4 {[%clk 0:00:28]}  Kc1 {[%clk 0:00:06]} 70. Kd3 {[%clk 0:00:29]}  Kb1 {[%clk 0:00:07]} 71. Kc3 {[%clk 0:00:29]}  Ka1 {[%clk 0:00:08]} 72. Qb2# {[%clk 0:00:29]} 1-0


[Site "https://www.chess.com"]